[Event "Early-Titled-Tuesday-Blitz-February-13-2024"]
[Site "Chess.com"]
[Date "2024.02.13"]
[Round "7"]
[White "guillembaches"]
[Black "GrotBchess"]
[Result "1-0"]
[WhiteElo "2564"]
[BlackElo "2379"]
[TimeControl "180+1"]
[EndTime "9:20:31 PST"]
[Termination "guillembaches won by resignation"]

1. d4 {[%clk 0:03:00.9]} 1... Nf6 {[%clk 0:02:56.8]} 2. Nf3 {[%clk 0:03:01.3]}
2... g6 {[%clk 0:02:55.1]} 3. Bg5 {[%clk 0:03:01.7]} 3... Bg7 {[%clk 0:02:55]}
4. Nbd2 {[%clk 0:03:01.6]} 4... O-O {[%clk 0:02:54.2]} 5. c3 {[%clk 0:03:01.4]}
5... d5 {[%clk 0:02:53.5]} 6. e3 {[%clk 0:03:01.4]} 6... Nbd7 {[%clk 0:02:53.2]}
7. Be2 {[%clk 0:03:01.6]} 7... c5 {[%clk 0:02:52.8]} 8. O-O {[%clk 0:03:01.3]}
8... b6 {[%clk 0:02:52]} 9. b4 {[%clk 0:03:01.3]} 9... Bb7 {[%clk 0:02:50.9]}
10. bxc5 {[%clk 0:03:01.2]} 10... bxc5 {[%clk 0:02:51.8]} 11. Qa4 {[%clk
0:03:00.3]} 11... Qc8 {[%clk 0:02:49.2]} 12. Rab1 {[%clk 0:02:52]} 12... Bc6
{[%clk 0:02:48.9]} 13. Qa3 {[%clk 0:02:50.3]} 13... Re8 {[%clk 0:02:43]} 14. Ba6
{[%clk 0:02:43.5]} 14... Qc7 {[%clk 0:02:37.9]} 15. Bf4 {[%clk 0:02:37.3]} 15...
Qd8 {[%clk 0:02:37.3]} 16. Bb7 {[%clk 0:02:26.1]} 16... Bxb7 {[%clk 0:02:33.9]}
17. Rxb7 {[%clk 0:02:26.6]} 17... Qc8 {[%clk 0:02:30.6]} 18. Rc7 {[%clk
0:02:17.1]} 18... Qd8 {[%clk 0:02:30.3]} 19. Rxa7 {[%clk 0:02:16.5]} 19... Rxa7
{[%clk 0:02:27.1]} 20. Qxa7 {[%clk 0:02:16.9]} 20... cxd4 {[%clk 0:02:26.3]} 21.
cxd4 {[%clk 0:02:14.9]} 21... Qa8 {[%clk 0:02:13.2]} 22. Qxa8 {[%clk 0:01:53.8]}
22... Rxa8 {[%clk 0:02:14.1]} 23. Ra1 {[%clk 0:01:43.2]} 23... Ne4 {[%clk
0:02:09.6]} 24. a4 {[%clk 0:01:30.6]} 24... Nc3 {[%clk 0:00:54.8]} 25. a5 {[%clk
0:01:23.1]} 25... Ne2+ {[%clk 0:00:54.4]} 26. Kf1 {[%clk 0:01:23]} 26... Nxf4
{[%clk 0:00:54.8]} 27. exf4 {[%clk 0:01:23.6]} 27... Kf8 {[%clk 0:00:50.9]} 28.
Ne5 {[%clk 0:01:15.8]} 28... Bxe5 {[%clk 0:00:41]} 29. fxe5 {[%clk 0:01:12.3]}
29... Ke8 {[%clk 0:00:40.6]} 30. Ke2 {[%clk 0:01:07.1]} 30... Kd8 {[%clk
0:00:39.8]} 31. Kd3 {[%clk 0:01:07]} 31... Kc7 {[%clk 0:00:31.9]} 32. f4 {[%clk
0:01:05.6]} 32... Nb8 {[%clk 0:00:27.7]} 33. Nb3 {[%clk 0:01:01.2]} 33... Nc6
{[%clk 0:00:26.6]} 34. Kc3 {[%clk 0:00:57.8]} 34... e6 {[%clk 0:00:24.4]} 35.
Ra4 {[%clk 0:00:47]} 35... Ra6 {[%clk 0:00:21.8]} 36. g3 {[%clk 0:00:44.5]}
36... Ra7 {[%clk 0:00:21.2]} 37. a6 {[%clk 0:00:38.9]} 37... Kb6 {[%clk
0:00:20.1]} 38. Nc5 {[%clk 0:00:38.4]} 38... Ra8 {[%clk 0:00:19.8]} 39. Ra1
{[%clk 0:00:36.2]} 39... Nb8 {[%clk 0:00:17.8]} 40. Rb1+ {[%clk 0:00:30.9]}
40... Kc6 {[%clk 0:00:16.8]} 41. a7 {[%clk 0:00:27]} 41... Nd7 {[%clk
0:00:16.4]} 42. Nxd7 {[%clk 0:00:27]} 42... Kxd7 {[%clk 0:00:17.3]} 43. Rb7+
{[%clk 0:00:26.9]} 43... Kc6 {[%clk 0:00:16.1]} 44. Rxf7 {[%clk 0:00:26.9]}
44... Rxa7 {[%clk 0:00:16.2]} 45. Rxa7 {[%clk 0:00:26.3]} 45... Kb6 {[%clk
0:00:15.3]} 46. Rxh7 {[%clk 0:00:25.7]} 1-0

[Event "Early-Titled-Tuesday-Blitz-February-13-2024"]
[Site "Chess.com"]
[Date "2024.02.13"]
[Round "7"]
[White "Teidi96"]
[Black "Ariadna_Atreides"]
[Result "0-1"]
[WhiteElo "2274"]
[BlackElo "2157"]
[TimeControl "180+1"]
[EndTime "9:20:31 PST"]
[Termination "Ariadna_Atreides won by resignation"]

1. e4 {[%clk 0:03:00.9]} 1... c6 {[%clk 0:02:56.3]} 2. d4 {[%clk 0:03:00.5]}
2... d5 {[%clk 0:02:56.3]} 3. exd5 {[%clk 0:03:01.4]} 3... cxd5 {[%clk
0:02:56.3]} 4. c4 {[%clk 0:03:02.3]} 4... Nf6 {[%clk 0:02:54.3]} 5. Nc3 {[%clk
0:03:02.1]} 5... e6 {[%clk 0:02:54.4]} 6. Nf3 {[%clk 0:03:02.5]} 6... Bb4 {[%clk
0:02:54]} 7. cxd5 {[%clk 0:03:03]} 7... Nxd5 {[%clk 0:02:53.4]} 8. Bd2 {[%clk
0:03:03.5]} 8... O-O {[%clk 0:02:53.2]} 9. Bd3 {[%clk 0:03:03.8]} 9... b6 {[%clk
0:02:50.7]} 10. O-O {[%clk 0:03:04]} 10... Bb7 {[%clk 0:02:48.7]} 11. Re1 {[%clk
0:03:04.5]} 11... Nd7 {[%clk 0:02:45.2]} 12. a3 {[%clk 0:03:05.1]} 12... Bd6
{[%clk 0:02:41.7]} 13. Bg5 {[%clk 0:02:59.4]} 13... Be7 {[%clk 0:02:21.7]} 14.
Bxe7 {[%clk 0:02:55.1]} 14... Nxe7 {[%clk 0:02:10.9]} 15. Bc2 {[%clk 0:02:47.1]}
15... Nf6 {[%clk 0:02:09.4]} 16. Qd3 {[%clk 0:02:45.9]} 16... Bxf3 {[%clk
0:02:06.5]} 17. Qxf3 {[%clk 0:02:45]} 17... Qxd4 {[%clk 0:02:01.4]} 18. Rad1
{[%clk 0:02:44.9]} 18... Qg4 {[%clk 0:01:58.6]} 19. Qxg4 {[%clk 0:02:40.5]}
19... Nxg4 {[%clk 0:01:59.5]} 20. Rd7 {[%clk 0:02:39.7]} 20... Ng6 {[%clk
0:01:49]} 21. Be4 {[%clk 0:02:35.4]} 21... Rac8 {[%clk 0:01:46.4]} 22. Rxa7
{[%clk 0:02:34.8]} 22... N4e5 {[%clk 0:01:32.1]} 23. Rb7 {[%clk 0:02:30.3]}
23... Nc4 {[%clk 0:01:30.1]} 24. Nd1 {[%clk 0:02:19.4]} 24... Rfd8 {[%clk
0:01:04.9]} 25. a4 {[%clk 0:02:14.7]} 25... Nd6 {[%clk 0:01:03.8]} 26. Nc3
{[%clk 0:01:57.8]} 26... Nxb7 {[%clk 0:01:02.5]} 27. Bxb7 {[%clk 0:01:58.7]}
27... Rc7 {[%clk 0:01:00.9]} 28. Be4 {[%clk 0:01:50.7]} 28... f5 {[%clk
0:00:58.5]} 29. Bf3 {[%clk 0:01:40.9]} 29... Nh4 {[%clk 0:00:41.7]} 30. Be2
{[%clk 0:01:20.1]} 30... Rd2 {[%clk 0:00:36.5]} 31. g3 {[%clk 0:01:20.3]} 31...
Ng6 {[%clk 0:00:33.7]} 32. Nb5 {[%clk 0:01:19.8]} 32... Rcc2 {[%clk 0:00:31.8]}
33. Kf1 {[%clk 0:01:14.8]} 33... Rxb2 {[%clk 0:00:29.3]} 34. Nc7 {[%clk
0:01:07]} 34... Kf7 {[%clk 0:00:22.3]} 35. h4 {[%clk 0:00:59.8]} 35... Ne5
{[%clk 0:00:16.6]} 36. Nb5 {[%clk 0:00:53.7]} 36... Nd3 {[%clk 0:00:14.9]} 37.
Bxd3 {[%clk 0:00:50.4]} 37... Rxd3 {[%clk 0:00:14.6]} 38. Rc1 {[%clk 0:00:34.7]}
38... Rdd2 {[%clk 0:00:14.3]} 39. Rc7+ {[%clk 0:00:33.8]} 39... Kf6 {[%clk
0:00:13.2]} 40. Rc6 {[%clk 0:00:34.4]} 40... Rxf2+ {[%clk 0:00:12.3]} 41. Kg1
{[%clk 0:00:34.5]} 41... Rg2+ {[%clk 0:00:12]} 42. Kh1 {[%clk 0:00:33.9]} 42...
Rgc2 {[%clk 0:00:10.1]} 43. Rxc2 {[%clk 0:00:30.4]} 43... Rxc2 {[%clk 0:00:11]}
0-1

[Event "Early-Titled-Tuesday-Blitz-February-13-2024"]
[Site "Chess.com"]
[Date "2024.02.13"]
[Round "7"]
[White "Helenita13"]
[Black "Cheer_Down"]
[Result "1-0"]
[WhiteElo "2392"]
[BlackElo "2488"]
[TimeControl "180+1"]
[EndTime "9:20:35 PST"]
[Termination "Helenita13 won by resignation"]

1. Nf3 {[%clk 0:03:00.9]} 1... Nf6 {[%clk 0:02:59.2]} 2. d4 {[%clk 0:03:00.7]}
2... e6 {[%clk 0:02:58.4]} 3. Bf4 {[%clk 0:03:00.8]} 3... c5 {[%clk 0:02:57.7]}
4. e3 {[%clk 0:03:00]} 4... Nc6 {[%clk 0:02:57]} 5. Nbd2 {[%clk 0:02:57.8]} 5...
d5 {[%clk 0:02:56.4]} 6. c3 {[%clk 0:02:55.7]} 6... cxd4 {[%clk 0:02:55.8]} 7.
exd4 {[%clk 0:02:56.4]} 7... Nh5 {[%clk 0:02:56]} 8. Bg5 {[%clk 0:02:48.5]} 8...
f6 {[%clk 0:02:55.8]} 9. Be3 {[%clk 0:02:37.9]} 9... g6 {[%clk 0:02:51.8]} 10.
Bd3 {[%clk 0:02:22.7]} 10... Bd6 {[%clk 0:02:49.3]} 11. Qc2 {[%clk 0:02:22.3]}
11... Kf7 {[%clk 0:02:47.4]} 12. Nf1 {[%clk 0:02:15.1]} 12... Bd7 {[%clk
0:02:40.9]} 13. Ng3 {[%clk 0:02:14.9]} 13... Nf4 {[%clk 0:02:40.8]} 14. Bxf4
{[%clk 0:02:14.1]} 14... Bxf4 {[%clk 0:02:41.7]} 15. O-O {[%clk 0:02:08.7]}
15... Rc8 {[%clk 0:02:41.1]} 16. Qe2 {[%clk 0:02:05.9]} 16... Kg7 {[%clk
0:02:26.1]} 17. Rae1 {[%clk 0:01:51.3]} 17... Qc7 {[%clk 0:02:19.5]} 18. Bb1
{[%clk 0:01:50.5]} 18... Rce8 {[%clk 0:02:14.8]} 19. Qc2 {[%clk 0:01:39.4]}
19... Bd6 {[%clk 0:01:53.9]} 20. Nh4 {[%clk 0:01:37.3]} 20... Ne7 {[%clk
0:01:40.1]} 21. Rd1 {[%clk 0:01:15.1]} 21... e5 {[%clk 0:01:33.8]} 22. dxe5
{[%clk 0:01:11.8]} 22... fxe5 {[%clk 0:01:33.9]} 23. Rfe1 {[%clk 0:00:58.6]}
23... Rhf8 {[%clk 0:01:28.1]} 24. Qd2 {[%clk 0:00:56.8]} 24... e4 {[%clk
0:01:09.5]} 25. Qg5 {[%clk 0:00:54.2]} 25... Bf4 {[%clk 0:00:57.8]} 26. Nh5+
{[%clk 0:00:53]} 26... Kh8 {[%clk 0:00:57.7]} 27. Nxf4 {[%clk 0:00:50.7]} 27...
Qxf4 {[%clk 0:00:58.6]} 28. Qxf4 {[%clk 0:00:46.5]} 28... Rxf4 {[%clk
0:00:59.5]} 29. g3 {[%clk 0:00:47.1]} 29... Rf6 {[%clk 0:00:54.2]} 30. Bxe4
{[%clk 0:00:47.2]} 30... Bg4 {[%clk 0:00:49.4]} 31. f3 {[%clk 0:00:37.7]} 31...
dxe4 {[%clk 0:00:48.1]} 32. fxg4 {[%clk 0:00:37.7]} 32... Nc6 {[%clk 0:00:46.4]}
33. Ng2 {[%clk 0:00:34.8]} 33... Re7 {[%clk 0:00:34.5]} 34. Re3 {[%clk
0:00:34.8]} 34... Rfe6 {[%clk 0:00:33.3]} 35. Nf4 {[%clk 0:00:33.2]} 35... Re5
{[%clk 0:00:32.8]} 36. Rd6 {[%clk 0:00:31.4]} 36... Kg7 {[%clk 0:00:32.3]} 37.
b4 {[%clk 0:00:30.7]} 37... a6 {[%clk 0:00:31.4]} 38. a4 {[%clk 0:00:30.2]}
38... Nd8 {[%clk 0:00:24.9]} 39. Rxd8 {[%clk 0:00:29.4]} 39... Rc7 {[%clk
0:00:18.9]} 40. b5 {[%clk 0:00:25.2]} 40... axb5 {[%clk 0:00:18.5]} 41. axb5
{[%clk 0:00:26.1]} 41... Rxb5 {[%clk 0:00:19.2]} 42. Ne6+ {[%clk 0:00:26.3]} 1-0

[Event "Early-Titled-Tuesday-Blitz-February-13-2024"]
[Site "Chess.com"]
[Date "2024.02.13"]
[Round "7"]
[White "Barmen_EV"]
[Black "MyDream003"]
[Result "0-1"]
[WhiteElo "2516"]
[BlackElo "2722"]
[TimeControl "180+1"]
[EndTime "9:20:37 PST"]
[Termination "MyDream003 won by checkmate"]

1. e4 {[%clk 0:03:00.9]} 1... c6 {[%clk 0:02:58.1]} 2. d4 {[%clk 0:03:01.1]}
2... d5 {[%clk 0:02:58.4]} 3. e5 {[%clk 0:03:01.9]} 3... Bf5 {[%clk 0:02:58.6]}
4. h4 {[%clk 0:03:02.5]} 4... h6 {[%clk 0:02:58.7]} 5. g4 {[%clk 0:03:02.3]}
5... Bd7 {[%clk 0:02:57.8]} 6. h5 {[%clk 0:03:02.9]} 6... e6 {[%clk 0:02:58]} 7.
f4 {[%clk 0:03:03.3]} 7... c5 {[%clk 0:02:58.6]} 8. c3 {[%clk 0:03:03.6]} 8...
Nc6 {[%clk 0:02:54]} 9. Nf3 {[%clk 0:03:03.9]} 9... Qb6 {[%clk 0:02:51.8]} 10.
Rh2 {[%clk 0:03:02.1]} 10... Rc8 {[%clk 0:02:48.9]} 11. Kf2 {[%clk 0:03:01.8]}
11... cxd4 {[%clk 0:02:37.3]} 12. cxd4 {[%clk 0:03:02.1]} 12... Nxd4 {[%clk
0:02:16.2]} 13. Nxd4 {[%clk 0:02:39.3]} 13... Rxc1 {[%clk 0:01:58.2]} 14. Qxc1
{[%clk 0:02:39.5]} 14... Qxd4+ {[%clk 0:01:58.9]} 15. Kg3 {[%clk 0:02:33.1]}
15... f6 {[%clk 0:01:45.4]} 16. Nc3 {[%clk 0:01:34.7]} 16... fxe5 {[%clk
0:01:40.8]} 17. Nb5 {[%clk 0:01:12.8]} 17... exf4+ {[%clk 0:01:39.3]} 18. Kh3
{[%clk 0:00:49.5]} 18... Qg1 {[%clk 0:01:10.2]} 19. Qxf4 {[%clk 0:00:33.2]}
19... Nf6 {[%clk 0:01:10.2]} 20. Nc7+ {[%clk 0:00:20.6]} 20... Kf7 {[%clk
0:01:10]} 21. Rg2 {[%clk 0:00:07.8]} 21... Qb6 {[%clk 0:01:05.6]} 22. Bd3 {[%clk
0:00:06.1]} 22... Bd6 {[%clk 0:00:58.6]} 23. Qf3 {[%clk 0:00:05.8]} 23... Qxc7
{[%clk 0:00:48]} 24. Rf1 {[%clk 0:00:06]} 24... Ke7 {[%clk 0:00:35.8]} 25. Re2
{[%clk 0:00:04.6]} 25... e5 {[%clk 0:00:32.7]} 26. Bf5 {[%clk 0:00:04.7]} 26...
e4 {[%clk 0:00:30.2]} 27. Qf2 {[%clk 0:00:04.4]} 27... Bxf5 {[%clk 0:00:25.5]}
28. Qxf5 {[%clk 0:00:04.7]} 28... Rf8 {[%clk 0:00:14.5]} 29. Qg6 {[%clk
0:00:05]} 29... Rf7 {[%clk 0:00:14.7]} 30. g5 {[%clk 0:00:03.4]} 30... hxg5
{[%clk 0:00:14.9]} 31. Qxg5 {[%clk 0:00:04.3]} 31... Qd7+ {[%clk 0:00:15.5]} 32.
Kg2 {[%clk 0:00:02.6]} 32... Qe6 {[%clk 0:00:16]} 33. Ref2 {[%clk 0:00:02.7]}
33... Qe5 {[%clk 0:00:15]} 34. Rf5 {[%clk 0:00:02.7]} 34... Qh2# {[%clk
0:00:15.2]} 0-1

[Event "Early-Titled-Tuesday-Blitz-February-13-2024"]
[Site "Chess.com"]
[Date "2024.02.13"]
[Round "7"]
[White "temiksmozg"]
[Black "baki83"]
[Result "0-1"]
[WhiteElo "2607"]
[BlackElo "2840"]
[TimeControl "180+1"]
[EndTime "9:20:37 PST"]
[Termination "baki83 won by resignation"]

1. e4 {[%clk 0:03:00.9]} 1... c5 {[%clk 0:02:59.7]} 2. Nf3 {[%clk 0:03:00.7]}
2... Nc6 {[%clk 0:03:00]} 3. d4 {[%clk 0:03:00.1]} 3... cxd4 {[%clk 0:03:00.4]}
4. Nxd4 {[%clk 0:03:01]} 4... Nf6 {[%clk 0:03:00.8]} 5. Nc3 {[%clk 0:03:00.7]}
5... d6 {[%clk 0:03:01.3]} 6. Bg5 {[%clk 0:02:57.3]} 6... e6 {[%clk 0:03:01.3]}
7. Qd2 {[%clk 0:02:56.2]} 7... a6 {[%clk 0:03:00.4]} 8. f4 {[%clk 0:02:54.8]}
8... h6 {[%clk 0:02:54.7]} 9. Bxf6 {[%clk 0:02:48.5]} 9... Qxf6 {[%clk
0:02:54.5]} 10. Nf3 {[%clk 0:02:41]} 10... Qd8 {[%clk 0:02:43.1]} 11. O-O-O
{[%clk 0:02:40.3]} 11... Qc7 {[%clk 0:02:43.4]} 12. Kb1 {[%clk 0:02:38]} 12...
b5 {[%clk 0:02:40.6]} 13. Ne2 {[%clk 0:02:29.4]} 13... Bb7 {[%clk 0:02:39.9]}
14. Ned4 {[%clk 0:02:26.4]} 14... Nxd4 {[%clk 0:02:39.7]} 15. Qxd4 {[%clk
0:02:27.3]} 15... Rc8 {[%clk 0:02:38.5]} 16. Bd3 {[%clk 0:02:26.8]} 16... Qc5
{[%clk 0:02:37.1]} 17. Rhe1 {[%clk 0:02:23]} 17... Qxd4 {[%clk 0:02:36.2]} 18.
Nxd4 {[%clk 0:02:23.9]} 18... Be7 {[%clk 0:02:36.1]} 19. g3 {[%clk 0:02:20.7]}
19... g5 {[%clk 0:02:28.2]} 20. f5 {[%clk 0:02:16.3]} 20... Bf6 {[%clk
0:02:28.5]} 21. c3 {[%clk 0:02:14.6]} 21... Ke7 {[%clk 0:02:28.1]} 22. a3 {[%clk
0:02:06.7]} 22... g4 {[%clk 0:02:25.7]} 23. Ne2 {[%clk 0:02:02.6]} 23... Be5
{[%clk 0:02:14.6]} 24. Nf4 {[%clk 0:01:56.3]} 24... Rcg8 {[%clk 0:02:08.3]} 25.
Rf1 {[%clk 0:01:53.8]} 25... h5 {[%clk 0:02:07.4]} 26. Rd2 {[%clk 0:01:48.8]}
26... h4 {[%clk 0:02:07]} 27. Rdf2 {[%clk 0:01:44]} 27... Bc6 {[%clk 0:01:51.1]}
28. Kc2 {[%clk 0:01:36.7]} 28... Be8 {[%clk 0:01:38.8]} 29. Kd2 {[%clk
0:01:34.7]} 29... Rh6 {[%clk 0:01:36]} 30. Ke3 {[%clk 0:01:32.7]} 30... Rgh8
{[%clk 0:01:30]} 31. Bc2 {[%clk 0:01:30.6]} 31... hxg3 {[%clk 0:01:21.4]} 32.
hxg3 {[%clk 0:01:30.2]} 32... Rh2 {[%clk 0:01:21.4]} 33. Bb3 {[%clk 0:01:29]}
33... Rxf2 {[%clk 0:01:16.7]} 34. Rxf2 {[%clk 0:01:29.9]} 34... Rh1 {[%clk
0:01:00.6]} 35. fxe6 {[%clk 0:01:20.6]} 35... fxe6 {[%clk 0:01:00.5]} 36. Rg2
{[%clk 0:00:50.1]} 36... Bf7 {[%clk 0:00:41.4]} 37. Kd2 {[%clk 0:00:41.4]} 37...
Rb1 {[%clk 0:00:20.6]} 38. Kc2 {[%clk 0:00:38.4]} 38... Rf1 {[%clk 0:00:20]} 39.
Nd3 {[%clk 0:00:34.7]} 39... Bg6 {[%clk 0:00:18.5]} 40. Re2 {[%clk 0:00:18]}
40... Bxg3 {[%clk 0:00:17.7]} 41. Rg2 {[%clk 0:00:17.6]} 41... Rf3 {[%clk
0:00:16.9]} 42. Kd2 {[%clk 0:00:16.2]} 42... Bxe4 {[%clk 0:00:16.5]} 43. Bd1
{[%clk 0:00:16.8]} 43... Rxd3+ {[%clk 0:00:15.9]} 0-1

[Event "Early-Titled-Tuesday-Blitz-February-13-2024"]
[Site "Chess.com"]
[Date "2024.02.13"]
[Round "7"]
[White "SlavenPastar"]
[Black "Gryffindorac8"]
[Result "1-0"]
[WhiteElo "2606"]
[BlackElo "2397"]
[TimeControl "180+1"]
[EndTime "9:20:37 PST"]
[Termination "SlavenPastar won by resignation"]

1. b3 {[%clk 0:03:00.9]} 1... e5 {[%clk 0:02:56.8]} 2. Bb2 {[%clk 0:03:01.5]}
2... Nc6 {[%clk 0:02:56.5]} 3. Nf3 {[%clk 0:03:02.1]} 3... e4 {[%clk 0:02:53.7]}
4. Nd4 {[%clk 0:03:02.4]} 4... Nxd4 {[%clk 0:02:53.6]} 5. Bxd4 {[%clk
0:03:03.3]} 5... Ne7 {[%clk 0:02:52.1]} 6. c4 {[%clk 0:03:00.6]} 6... Nf5 {[%clk
0:02:50.1]} 7. Bb2 {[%clk 0:02:59.7]} 7... c6 {[%clk 0:02:40.9]} 8. e3 {[%clk
0:02:51.2]} 8... d5 {[%clk 0:02:38.7]} 9. cxd5 {[%clk 0:02:50.5]} 9... cxd5
{[%clk 0:02:36.8]} 10. Bb5+ {[%clk 0:02:29.3]} 10... Bd7 {[%clk 0:02:35.1]} 11.
Qe2 {[%clk 0:02:13.7]} 11... a6 {[%clk 0:02:28.1]} 12. Bxd7+ {[%clk 0:02:13.1]}
12... Qxd7 {[%clk 0:02:29]} 13. O-O {[%clk 0:02:10.7]} 13... Bd6 {[%clk
0:02:22.6]} 14. d3 {[%clk 0:02:08.7]} 14... O-O {[%clk 0:02:18.8]} 15. dxe4
{[%clk 0:02:08]} 15... dxe4 {[%clk 0:02:18.2]} 16. Nc3 {[%clk 0:02:03.1]} 16...
Qe6 {[%clk 0:02:15.8]} 17. Rad1 {[%clk 0:01:50.5]} 17... Rac8 {[%clk 0:02:03]}
18. Qg4 {[%clk 0:01:43.9]} 18... Rfe8 {[%clk 0:01:56.7]} 19. Rd5 {[%clk
0:01:25.5]} 19... Be5 {[%clk 0:01:36.3]} 20. Rfd1 {[%clk 0:01:04.4]} 20... Bxc3
{[%clk 0:00:47]} 21. Bxc3 {[%clk 0:00:59.9]} 21... Rxc3 {[%clk 0:00:45.8]} 22.
Qxf5 {[%clk 0:00:54.5]} 22... Qxf5 {[%clk 0:00:39.9]} 23. Rxf5 {[%clk
0:00:55.4]} 23... g6 {[%clk 0:00:39.9]} 24. Rf6 {[%clk 0:00:50.1]} 24... Kg7
{[%clk 0:00:35.2]} 25. Rb6 {[%clk 0:00:47.1]} 25... Re7 {[%clk 0:00:35.5]} 26.
g4 {[%clk 0:00:44.2]} 26... Rc2 {[%clk 0:00:32]} 27. a4 {[%clk 0:00:42.3]} 27...
h6 {[%clk 0:00:25.4]} 28. Kg2 {[%clk 0:00:40.8]} 28... Rc3 {[%clk 0:00:19.3]}
29. Rd4 {[%clk 0:00:35.2]} 29... Rc2 {[%clk 0:00:16]} 30. Kg3 {[%clk 0:00:33.6]}
30... Rb2 {[%clk 0:00:13.6]} 31. Rdb4 {[%clk 0:00:32.9]} 31... Rd7 {[%clk
0:00:06]} 32. Rxb7 {[%clk 0:00:18.9]} 32... Rdd2 {[%clk 0:00:05.9]} 33. Rxe4
{[%clk 0:00:19]} 33... Rxf2 {[%clk 0:00:05.9]} 34. Rf4 {[%clk 0:00:19]} 34...
Rxh2 {[%clk 0:00:05]} 35. Rbxf7+ {[%clk 0:00:15.9]} 35... Kg8 {[%clk 0:00:02.2]}
36. Rf8+ {[%clk 0:00:16.8]} 1-0

[Event "Early-Titled-Tuesday-Blitz-February-13-2024"]
[Site "Chess.com"]
[Date "2024.02.13"]
[Round "7"]
[White "Ducke13"]
[Black "BursaBBSatranc"]
[Result "0-1"]
[WhiteElo "2324"]
[BlackElo "2671"]
[TimeControl "180+1"]
[EndTime "9:20:37 PST"]
[Termination "BursaBBSatranc won on time"]

1. d4 {[%clk 0:03:00.9]} 1... d5 {[%clk 0:02:59.9]} 2. Nf3 {[%clk 0:03:00.1]}
2... Nf6 {[%clk 0:03:00.1]} 3. g3 {[%clk 0:02:59.9]} 3... Bg4 {[%clk 0:02:56.9]}
4. Ne5 {[%clk 0:02:58]} 4... Bh5 {[%clk 0:02:56.6]} 5. c4 {[%clk 0:02:56.8]}
5... c6 {[%clk 0:02:56.8]} 6. Nc3 {[%clk 0:02:55.9]} 6... e6 {[%clk 0:02:56.9]}
7. cxd5 {[%clk 0:02:55.8]} 7... exd5 {[%clk 0:02:56.8]} 8. Bh3 {[%clk
0:02:55.1]} 8... Nbd7 {[%clk 0:02:48.6]} 9. Bg5 {[%clk 0:02:54.2]} 9... Qc7
{[%clk 0:02:45.9]} 10. Nxd7 {[%clk 0:02:32.4]} 10... Nxd7 {[%clk 0:02:45.7]} 11.
O-O {[%clk 0:02:32]} 11... Bd6 {[%clk 0:02:23.3]} 12. Rc1 {[%clk 0:02:30.9]}
12... Nb6 {[%clk 0:02:09.1]} 13. Nb5 {[%clk 0:02:29]} 13... Qb8 {[%clk
0:02:09.4]} 14. Nxd6+ {[%clk 0:02:27.1]} 14... Qxd6 {[%clk 0:02:10.3]} 15. Bf4
{[%clk 0:02:09.2]} 15... Qe7 {[%clk 0:02:10.4]} 16. Re1 {[%clk 0:01:56.7]} 16...
O-O {[%clk 0:02:10.2]} 17. b3 {[%clk 0:01:41.6]} 17... Rfe8 {[%clk 0:02:03.4]}
18. Qd2 {[%clk 0:01:39.7]} 18... Nd7 {[%clk 0:01:52.5]} 19. Rc3 {[%clk
0:01:35.6]} 19... Nf6 {[%clk 0:01:52.2]} 20. f3 {[%clk 0:01:24.9]} 20... Bg6
{[%clk 0:01:39.9]} 21. Be5 {[%clk 0:01:18.9]} 21... Nd7 {[%clk 0:01:35.1]} 22.
Bf4 {[%clk 0:01:18.8]} 22... h6 {[%clk 0:01:31.7]} 23. Kf2 {[%clk 0:01:16.5]}
23... a5 {[%clk 0:01:29.4]} 24. Re3 {[%clk 0:00:57]} 24... Qd8 {[%clk
0:01:26.1]} 25. Rxe8+ {[%clk 0:00:43.8]} 25... Qxe8 {[%clk 0:01:27]} 26. e4
{[%clk 0:00:37.8]} 26... dxe4 {[%clk 0:01:17.6]} 27. fxe4 {[%clk 0:00:36.1]}
27... Nf6 {[%clk 0:01:18.1]} 28. Bg2 {[%clk 0:00:14.4]} 28... a4 {[%clk
0:00:59.5]} 29. Be5 {[%clk 0:00:10.5]} 29... axb3 {[%clk 0:00:57.2]} 30. axb3
{[%clk 0:00:11.4]} 30... Ng4+ {[%clk 0:00:55.9]} 31. Kg1 {[%clk 0:00:09.4]}
31... Nxe5 {[%clk 0:00:56.8]} 32. dxe5 {[%clk 0:00:08.9]} 32... Qxe5 {[%clk
0:00:57.7]} 33. Qf4 {[%clk 0:00:05.3]} 33... Qc3 {[%clk 0:00:40.4]} 34. Qe3
{[%clk 0:00:03.4]} 34... Qb4 {[%clk 0:00:30.9]} 35. e5 {[%clk 0:00:02.3]} 35...
Re8 {[%clk 0:00:29.3]} 36. Bh3 {[%clk 0:00:02.3]} 36... Kh7 {[%clk 0:00:29.2]}
37. e6 {[%clk 0:00:02.4]} 37... fxe6 {[%clk 0:00:28.2]} 38. Bxe6 {[%clk
0:00:03.3]} 38... Qd6 {[%clk 0:00:24.9]} 39. h4 {[%clk 0:00:02.6]} 39... Kh8
{[%clk 0:00:23.3]} 0-1